fUST/lending_fUST_20250622
["ID","MTS","AMOUNT","RATE_DAILY","PERIOD"]
[366881991,1750545048507,-460.0,0.00022475,2]
[366881992,1750545048517,-460.0,0.00022554,2]
[366881993,1750545048528,-460.0,0.00022901,2]
[366881994,1750545048538,-364.9,0.00022998,2]
[366881995,1750545048548,-883.46547522,0.0002484,7]
[366881996,1750545048762,-227.78900019,0.00022475,2]
[366881997,1750545048772,-794.29,0.00022989,10]
[366881998,1750545048783,-103143.40904173,0.0002484,7]
[366881999,1750545048795,-40124.35796707,0.0002484,7]
[366882000,1750545048805,-424.93363889,0.0002484,7]
[366882001,1750545048815,-213.55395994,0.0002484,7]
[366882002,1750545048825,-230.10342898,0.0002484,7]
[366882003,1750545048834,-159.16725,0.00024843,20]
[366882004,1750545048843,-500.0,0.0002485,2]
[366882005,1750545048853,-167.0,0.0002486,120]
[366882006,1750545048864,-882.16404566,0.00024866,12]
[366882007,1750545048873,-167.0,0.0002487,120]
[366882008,1750545048883,-500.61598727,0.00024873,2]
[366882009,1750545048893,-150.0,0.00024873,2]
[366882010,1750545048903,-500.0,0.00024873,2]
[366882011,1750545048912,-150.0,0.00024873,2]
[366882012,1750545048922,-500.0,0.00024877,2]
[366882013,1750545048931,-167.0,0.00024879,120]
[366882014,1750545048943,-167.0,0.0002488,120]
[366882015,1750545048952,-10133.225358,0.00024889,2]
[366882016,1750545048962,-167.0,0.00024889,120]
[366882017,1750545048972,-460.0,0.00024899,2]
[366882018,1750545048982,-282.64330607,0.00024899,2]
[366882019,1750545048991,-59298.84700146,0.00024899,2]
[366882020,1750545049002,-813.19,0.000249,7]
[366882021,1750545049011,-151.0,0.000249,7]
[366882022,1750545049021,-226.680415,0.000249,7]
[366882023,1750545049031,-226.680415,0.000249,7]
[366882024,1750545049040,-151.0,0.000249,7]
[366882025,1750545049050,-151.0,0.000249,7]
[366882026,1750545049059,-1515.43,0.000249,2]
[366882027,1750545049069,-151.0,0.000249,7]
[366882028,1750545049079,-151.0,0.000249,7]
[366882029,1750545049088,-151.0,0.000249,7]
[366882030,1750545049098,-151.0,0.000249,7]
[366882031,1750545049107,-151.0,0.000249,7]
[366882032,1750545049116,-264.515648,0.000249,7]
[366882033,1750545049127,-151.0,0.000249,7]
[366882034,1750545049138,-151.0,0.000249,7]
[366882035,1750545049148,-151.0,0.000249,7]
[366882036,1750545049157,-151.0,0.000249,7]
[366882037,1750545049166,-151.0,0.000249,7]
[366882038,1750545049176,-151.0,0.000249,7]
[366882039,1750545049186,-151.0,0.000249,7]
[366882040,1750545049197,-151.0,0.000249,7]
[366882041,1750545049208,-151.0,0.000249,7]
[366882042,1750545049217,-151.0,0.000249,7]
[366882043,1750545049227,-151.0,0.000249,7]
[366882044,1750545049237,-161.55728447,0.000249,2]
[366882045,1750545049246,-120212.97892201,0.000249,2]
[366882046,1750545049259,-480.44,0.000249,2]
[366882047,1750545050238,-36365.11952717,0.000249,2]
[366882048,1750545093127,1239.0,0.00022992,120]
[366882049,1750545093634,1239.0,0.00022982,120]
[366882050,1750545094074,1239.0,0.00022972,120]
[366882051,1750545094571,1239.0,0.00023989,120]
[366882052,1750545095045,1239.0,0.00023979,120]
[366882053,1750545095600,1239.0,0.00023969,120]
[366882054,1750545113463,1062.02687837,0.0002236,70]
[366882061,1750545631096,849.62150268,0.000222,69]
[366882062,1750545636115,849.62150266,0.000222,69]
[366882063,1750545641099,849.62150266,0.0002258,70]
[366882067,1750545945090,-5000.0,0.00019602,2]
[366882068,1750545945112,-500.0,0.0002,14]
[366882069,1750545945134,-300.0,0.00021199,2]
[366882070,1750545945164,-559.73847884,0.000212,4]
[366882071,1750545945195,-559.7384787,0.000212,4]
[366882072,1750545945228,-559.7384787,0.000212,4]
[366882073,1750545945260,-559.7384787,0.000212,4]
[366882074,1750545945300,-559.7384787,0.000212,4]
[366882075,1750545945337,-559.7384787,0.000212,4]
[366882076,1750545945369,-559.7384787,0.000212,4]
[366882077,1750545945393,-6495.46663,0.00021348,2]
[366882078,1750545945425,-559.7384787,0.00021348,5]
[366882079,1750545945448,-165.928655,0.00021464,2]
[366882080,1750545945480,-559.7384787,0.00021555,5]
[366882081,1750545945511,-559.7384787,0.00021762,5]
[366882082,1750545945541,-559.7384787,0.00021969,6]
[366882083,1750545945563,-500.0,0.00021999,2]
[366882084,1750545945587,-500.0,0.00021999,2]
[366882085,1750545945609,-359.62820591,0.00021999,2]
[366882086,1750545945631,-240.19159027,0.00021999,2]
[366882087,1750545945654,-500.0,0.00021999,2]
[366882088,1750545945675,-300.0,0.00021999,2]
[366882089,1750545945696,-500.0,0.00022,14]
[366882090,1750545945717,-500.0,0.00022,14]
[366882091,1750545945738,-500.0,0.00022,14]
[366882092,1750545945758,-500.0,0.00022,14]
[366882093,1750545945778,-500.0,0.00022,14]
[366882094,1750545945798,-500.0,0.00022,15]
[366882095,1750545945818,-500.0,0.00022,14]
[366882096,1750545945842,-500.0,0.00022,14]
[366882097,1750545945867,-500.0,0.00022,14]
[366882098,1750545945887,-170.0,0.00022,2]
[366882099,1750545945917,-559.7384787,0.00022176,6]
[366882100,1750545945938,-160.0,0.00022233,2]
[366882101,1750545945967,-559.7384787,0.00022383,7]
[366882102,1750545945990,-460.0,0.0002246,2]
[366882103,1750545946017,-460.0,0.0002246,2]
[366882104,1750545946040,-460.0,0.0002246,2]
[366882105,1750545946061,-460.0,0.0002246,2]
[366882106,1750545946084,-689.31,0.0002246,2]
[366882107,1750545946107,-460.0,0.0002246,2]
[366882108,1750545946127,-460.0,0.00022462,2]
[366882109,1750545946148,-492.24077613,0.00022464,2]
[366882110,1750545946170,-460.0,0.00022464,2]
[366882111,1750545946192,-460.0,0.00022465,2]
[366882112,1750545946212,-364.5395333,0.00022465,2]
[366882113,1750545946233,-161.0,0.00022465,2]
[366882114,1750545946256,-460.0,0.00022465,2]
[366882115,1750545946279,-460.0,0.00022465,2]
[366882116,1750545946303,-460.0,0.00022465,2]
[366882117,1750545946325,-578.41571546,0.00022466,2]
[366882118,1750545946345,-464.3640498,0.00022466,2]
[366882119,1750545946365,-349.17336041,0.00022466,2]
[366882120,1750545946385,-433.52729192,0.00022466,2]
[366882121,1750545946408,-464.41552569,0.00022466,2]
[366882122,1750545946429,-460.0,0.00022466,2]
[366882123,1750545946450,-438.8802909,0.00022466,2]
[366882124,1750545946472,-462.48138492,0.00022466,2]
[366882125,1750545946493,-447.86563321,0.00022466,2]
[366882126,1750545946512,-465.68002165,0.00022466,2]
[366882127,1750545946533,-460.0,0.00022466,2]
[366882128,1750545946554,-460.0,0.00022466,2]
[366882129,1750545946575,-532.08,0.00022466,2]
[366882130,1750545946597,-500.0,0.00022466,2]
[366882131,1750545946617,-460.0,0.00022466,2]
[366882132,1750545946642,-460.0,0.00022466,2]
[366882133,1750545946665,-460.0,0.00022466,2]
[366882134,1750545946687,-460.0,0.00022466,2]
[366882135,1750545946708,-460.0,0.00022467,2]
[366882136,1750545946728,-451.75922141,0.00022467,2]
[366882137,1750545946748,-460.0,0.00022467,2]
[366882138,1750545946768,-460.0,0.00022467,2]
[366882139,1750545946788,-1012.77997388,0.00022467,2]
[366882140,1750545946808,-460.0,0.00022467,2]
[366882141,1750545946827,-460.0,0.00022467,2]
[366882142,1750545946843,-201.57735746,0.00022467,2]
[366882143,1750545946859,-460.0,0.00022467,2]
[366882144,1750545946881,-345.55,0.00022467,2]
[366882145,1750545946903,-460.0,0.00022467,2]
[366882146,1750545946924,-450.47656246,0.00022467,2]
[366882147,1750545946948,-500.0,0.00022467,2]
[366882148,1750545946971,-500.0,0.00022467,2]
[366882149,1750545946994,-500.0,0.00022467,2]
[366882150,1750545947018,-500.0,0.00022467,2]
[366882151,1750545947039,-478.6706846,0.00022467,2]
[366882152,1750545947062,-500.0,0.00022467,2]
[366882153,1750545947084,-500.0,0.00022467,2]
[366882154,1750545947107,-500.0,0.00022467,2]
[366882155,1750545947130,-500.0,0.00022467,2]
[366882156,1750545947154,-500.0,0.00022467,2]
[366882157,1750545947177,-500.0,0.00022467,2]
[366882158,1750545947202,-500.0,0.00022467,2]
[366882159,1750545947226,-500.0,0.00022467,2]
[366882160,1750545947249,-500.0,0.00022467,2]
[366882161,1750545947272,-500.0,0.00022467,2]
[366882162,1750545947296,-500.0,0.00022467,2]
[366882163,1750545947319,-316.37661883,0.00022467,2]
[366882164,1750545947339,-12549.17366507,0.00022468,2]
[366882165,1750545947359,-160.0,0.00022468,2]
[366882166,1750545947477,-160.0,0.00022468,2]
[366882167,1750545947497,-160.0,0.00022468,2]
[366882168,1750545947518,-160.0,0.00022468,2]
[366882169,1750545947537,-230.10342898,0.00022468,2]
[366882170,1750545947558,-213.55395994,0.00022468,2]
[366882171,1750545947578,-846.23824438,0.00022468,2]
[366882172,1750545947598,-160.0,0.00022468,2]
[366882173,1750545947618,-160.0,0.00022468,2]
[366882174,1750545947639,-500.0,0.00022473,2]
[366882175,1750545947660,-460.0,0.00022473,2]
[366882176,1750545947681,-460.0,0.00022474,2]
[366882177,1750545947703,-151.74884919,0.00022474,2]
[366882178,1750545947722,-310.19278113,0.00022474,2]
[366882179,1750545947742,-460.0,0.00022474,2]
[366882180,1750545947762,-460.0,0.00022474,2]
[366882181,1750545947781,-509.43803525,0.00022474,2]
[366882182,1750545947801,-315.73958246,0.00022474,2]
[366882183,1750545947822,-462.61993472,0.00022474,2]
[366882184,1750545947841,-487.08390594,0.00022474,2]
[366882185,1750545947862,-464.04770726,0.00022474,2]
[366882186,1750545947882,-415.5658936,0.00022474,2]
[366882187,1750545947902,-460.0,0.00022474,2]
[366882188,1750545947921,-465.49691038,0.00022474,2]
[366882189,1750545947943,-460.0,0.00022474,2]
[366882190,1750545947964,-460.0,0.00022474,2]
[366882191,1750545947984,-460.0,0.00022474,2]
[366882192,1750545948005,-460.0,0.00022474,2]
[366882193,1750545948025,-437.42793544,0.00022474,2]
[366882194,1750545948047,-433.07791711,0.00022474,2]
[366882195,1750545948067,-460.0,0.00022474,2]
[366882196,1750545948088,-460.0,0.00022474,2]
[366882197,1750545948110,-460.0,0.00022474,2]
[366882198,1750545948131,-460.0,0.00022474,2]
[366882199,1750545948152,-460.0,0.00022474,2]
[366882200,1750545948173,-465.65629208,0.00022474,2]
[366882201,1750545948196,-460.0,0.00022474,2]
[366882202,1750545948219,-460.0,0.00022474,2]
[366882203,1750545948241,-449.82832722,0.00022474,2]
[366882204,1750545948263,-460.0,0.00022474,2]
[366882205,1750545948284,-460.0,0.00022474,2]
[366882206,1750545948307,-460.0,0.00022474,2]
[366882207,1750545948328,-403.16781778,0.00022474,2]
[366882208,1750545948349,-460.0,0.00022474,2]
[366882209,1750545948369,-460.0,0.00022474,2]
[366882210,1750545948392,-500.0,0.00022474,2]
[366882211,1750545948413,-460.0,0.00022474,2]
[366882212,1750545948434,-414.61398748,0.00022474,2]
[366882213,1750545948457,-460.0,0.00022474,2]
[366882214,1750545948482,-460.0,0.00022474,2]
[366882215,1750545948504,-472.05147297,0.00022474,2]
[366882216,1750545948526,-460.0,0.00022474,2]
[366882217,1750545948548,-460.0,0.00022474,2]
[366882218,1750545948569,-500.0,0.00022474,2]
[366882219,1750545948598,-460.0,0.00022474,2]
[366882220,1750545948627,-460.0,0.00022474,2]
[366882221,1750545948657,-460.0,0.00022474,2]
[366882222,1750545948682,-460.0,0.00022474,2]
[366882223,1750545948712,-460.0,0.00022474,2]
[366882224,1750545948739,-460.0,0.00022474,2]
[366882225,1750545948767,-460.0,0.00022474,2]
[366882226,1750545948793,-435.24438084,0.00022474,2]
[366882227,1750545948820,-460.0,0.00022474,2]
[366882228,1750545948846,-460.0,0.00022475,2]
[366882229,1750545948872,-460.0,0.00022475,2]
[366882230,1750545948899,-454.05014374,0.00022475,2]
[366882231,1750545948925,-460.0,0.00022475,2]
[366882232,1750545948949,-460.0,0.00022475,2]
[366882233,1750545948972,-460.0,0.00022475,2]
[366882234,1750545948997,-375.22275491,0.00022475,2]
[366882235,1750545949022,-400.0,0.00022475,2]
[366882236,1750545949048,-460.0,0.00022475,2]
[366882237,1750545949075,-460.0,0.00022475,2]
[366882238,1750545949104,-440.0,0.00022475,2]
[366882239,1750545949134,-460.0,0.00022475,2]
[366882240,1750545949164,-460.0,0.00022475,2]
[366882241,1750545949191,-460.0,0.00022475,2]
[366882242,1750545949216,-460.0,0.00022475,2]
[366882243,1750545949243,-460.0,0.00022475,2]
[366882244,1750545949271,-400.0,0.00022475,2]
[366882245,1750545949299,-460.0,0.00022475,2]
[366882246,1750545949324,-460.0,0.00022475,2]
[366882247,1750545949350,-460.0,0.00022475,2]
[366882248,1750545949377,-460.0,0.00022475,2]
[366882249,1750545949406,-500.0,0.00022475,2]
[366882250,1750545949432,-460.0,0.00022475,2]
[366882251,1750545949460,-460.0,0.00022475,2]
[366882252,1750545949486,-460.0,0.00022475,2]
[366882253,1750545949510,-460.0,0.00022475,2]
[366882254,1750545949533,-460.0,0.00022475,2]
[366882255,1750545949559,-460.0,0.00022475,2]
[366882256,1750545949584,-689.31,0.00022475,2]
[366882257,1750545949611,-689.31,0.00022475,2]
[366882258,1750545949635,-500.0,0.00022475,2]
[366882259,1750545949659,-460.0,0.00022475,2]
[366882260,1750545949682,-460.0,0.00022475,2]
[366882261,1750545949713,-460.0,0.00022475,2]
[366882262,1750545949740,-460.0,0.00022475,2]
[366882263,1750545949764,-460.0,0.00022475,2]
[366882264,1750545949791,-460.0,0.00022475,2]
[366882265,1750545949817,-460.0,0.00022475,2]
[366882266,1750545949842,-460.0,0.00022475,2]
[366882267,1750545949866,-460.0,0.00022475,2]
[366882268,1750545949890,-460.0,0.00022475,2]
[366882269,1750545949915,-460.0,0.00022476,2]
[366882270,1750545949944,-460.0,0.00022476,2]
[366882271,1750545950094,-460.0,0.00022476,2]
[366882272,1750545950116,-460.0,0.00022476,2]
[366882273,1750545950138,-460.0,0.00022476,2]
[366882274,1750545950160,-460.0,0.00022476,2]
[366882275,1750545950181,-460.0,0.00022476,2]
[366882276,1750545950207,-460.0,0.00022476,2]
[366882277,1750545950228,-421.78297709,0.00022476,2]
[366882278,1750545950249,-447.55822557,0.00022476,2]
[366882279,1750545950271,-460.0,0.00022476,2]
[366882280,1750545950292,-460.0,0.00022476,2]
[366882281,1750545950313,-460.0,0.00022476,2]
[366882282,1750545950334,-500.0,0.00022476,2]
[366882283,1750545950354,-397.75857945,0.00022476,2]
[366882284,1750545950374,-460.0,0.00022476,2]
[366882285,1750545950396,-382.40872505,0.00022476,2]
[366882286,1750545950497,-77.59127495,0.00022476,2]
[366882287,1750545950519,-460.0,0.00022476,2]
[366882288,1750545950540,-460.0,0.00022476,2]
[366882289,1750545950561,-460.0,0.00022476,2]
[366882290,1750545950582,-460.0,0.00022476,2]
[366882291,1750545950603,-460.0,0.00022476,2]
[366882292,1750545950623,-460.0,0.00022551,2]
[366882293,1750545950646,-460.0,0.00022551,2]
[366882294,1750545950669,-460.0,0.00022553,2]
[366882295,1750545950694,-460.0,0.00022553,2]
[366882296,1750545950717,-689.31,0.00022553,2]
[366882297,1750545950739,-460.0,0.00022553,2]
[366882298,1750545950768,-559.7384787,0.0002259,7]
[366882299,1750545950797,-559.7384787,0.00022797,7]
[366882300,1750545950818,-201.7,0.00022799,2]
[366882301,1750545950839,-160.0,0.00022799,2]
[366882302,1750545950864,-460.0,0.00022799,2]
[366882303,1750545950886,-500.0,0.00022819,2]
[366882304,1750545950907,-9792.45757803,0.00022898,2]
[366882305,1750545950930,-460.0,0.00022899,2]
[366882306,1750545950956,-460.0,0.00022899,2]
[366882307,1750545950979,-689.31,0.00022899,2]
[366882308,1750545951001,-460.0,0.00022899,2]
[366882309,1750545951026,-460.0,0.00022901,2]
[366882310,1750545951049,-460.0,0.00022998,2]
[366882311,1750545951072,-460.0,0.00022998,2]
[366882312,1750545951096,-500.0,0.00022998,2]
[366882313,1750545951121,-460.0,0.00022998,2]
[366882314,1750545951143,-529.88,0.00022998,2]
[366882315,1750545951166,-689.31,0.00022998,2]
[366882316,1750545951194,-460.0,0.00022998,2]
[366882317,1750545951218,-460.0,0.00022998,2]
[366882318,1750545951240,-460.0,0.00022998,2]
[366882319,1750545951261,-430.0,0.00022999,2]
[366882320,1750545951282,-465.90000317,0.00022999,2]
[366882321,1750545951303,-460.0,0.00022999,2]
[366882322,1750545951325,-460.0,0.00022999,2]
[366882323,1750545951346,-460.0,0.00022999,2]
[366882324,1750545951369,-460.0,0.00022999,2]
[366882325,1750545951393,-420.0,0.00022999,2]
[366882326,1750545951414,-460.0,0.00022999,2]
[366882327,1750545951437,-460.0,0.00022999,2]
[366882328,1750545951460,-460.0,0.00022999,2]
[366882329,1750545951487,-460.0,0.00022999,2]
[366882330,1750545951508,-404.60494926,0.00022999,2]
[366882331,1750545951529,-460.0,0.00022999,2]
[366882332,1750545951550,-500.0,0.00022999,2]
[366882333,1750545951570,-470.70700641,0.00022999,2]
[366882334,1750545951591,-427.53264957,0.00022999,2]
[366882335,1750545951612,-460.0,0.00022999,2]
[366882336,1750545951633,-430.0,0.00022999,2]
[366882337,1750545951654,-460.0,0.00022999,2]
[366882338,1750545951676,-460.0,0.00022999,2]
[366882339,1750545951698,-460.0,0.00022999,2]
[366882340,1750545951723,-434.63,0.00022999,2]
[366882341,1750545951747,-460.0,0.00022999,2]
[366882342,1750545951770,-460.0,0.00022999,2]
[366882343,1750545951793,-460.0,0.00022999,2]
[366882344,1750545951816,-500.0,0.00022999,2]
[366882345,1750545951841,-519.46,0.00022999,2]
[366882346,1750545951865,-689.31,0.00022999,2]
[366882347,1750545951889,-689.31,0.00022999,2]
[366882348,1750545951913,-689.31,0.00022999,2]
[366882349,1750545951941,-460.0,0.00022999,2]
[366882350,1750545951967,-460.0,0.00022999,2]
[366882351,1750545951992,-460.0,0.00022999,2]
[366882352,1750545952016,-460.0,0.00022999,2]
[366882353,1750545952039,-460.0,0.00022999,2]
[366882354,1750545952062,-460.0,0.00022999,2]
[366882355,1750545952083,-432.10679192,0.00023,2]
[366882356,1750545952105,-191.38634005,0.00023,2]
[366882357,1750545952125,-460.0,0.00023,2]
[366882358,1750545952146,-460.0,0.00023,2]
[366882359,1750545952168,-460.0,0.00023,2]
[366882360,1750545952193,-452.29346793,0.00023,2]
[366882361,1750545952214,-220.78875742,0.00023,2]
[366882362,1750545952236,-460.0,0.00023,2]
[366882363,1750545952257,-376.37623835,0.00023,2]
[366882364,1750545952279,-469.8614937,0.00023,2]
[366882365,1750545952300,-460.0,0.00023,2]
[366882366,1750545952321,-606.6,0.00023,2]
[366882367,1750545952352,-460.0,0.00023,2]
[366882368,1750545952378,-460.0,0.00023,2]
[366882369,1750545952403,-460.0,0.00023,2]
[366882370,1750545952426,-689.31,0.00023,2]
[366882371,1750545952451,-689.31,0.00023,2]
[366882372,1750545952477,-460.0,0.00023,2]
[366882373,1750545952502,-460.0,0.00023,2]
[366882374,1750545952526,-460.0,0.00023,2]
[366882375,1750545952550,-460.0,0.00023,2]
[366882376,1750545952574,-347.1,0.00023,2]
[366882377,1750545952596,-460.0,0.00023001,2]
[366882378,1750545952618,-355.61,0.00023001,2]
[366882379,1750545952640,-460.0,0.00023001,2]
[366882380,1750545952791,-435.46,0.00023001,2]
[366882381,1750545952814,-460.0,0.00023001,2]
[366882382,1750545952838,-520.43,0.00023001,2]
[366882383,1750545952861,-689.31,0.00023001,2]
[366882384,1750545952885,-689.31,0.00023001,2]
[366882385,1750545952907,-689.31,0.00023001,2]
[366882386,1750545952931,-460.0,0.00023001,2]
[366882387,1750545952963,-559.7384787,0.00023003,8]
[366882388,1750545952983,-170.0,0.00023014,7]
[366882389,1750545953004,-420.0,0.00023055,2]
[366882390,1750545953025,-549.66,0.00023088,3]
[366882391,1750545953050,-183.22,0.00023097,3]
[366882392,1750545953079,-559.7384787,0.0002321,8]
[366882393,1750545953102,-689.31,0.00023278,2]
[366882394,1750545953124,-366.44,0.00023289,3]
[366882395,1750545953144,-1008.2556835,0.00023367,2]
[366882396,1750545953166,-9792.45757803,0.00023375,2]
[366882397,1750545953197,-559.7384787,0.00023417,9]
[366882398,1750545953221,-689.31,0.0002346,2]
[366882399,1750545953251,-559.7384787,0.00023624,9]
[366882400,1750545953275,-500.0,0.00023626,2]
[366882401,1750545953297,-689.31,0.00023627,2]
[366882402,1750545953320,-689.31,0.00023638,2]
[366882403,1750545953344,-689.31,0.00023656,2]
[366882404,1750545953367,-689.31,0.00023819,2]
[366882405,1750545953391,-689.31,0.00023819,2]
[366882406,1750545953416,-689.31,0.00023819,2]
[366882407,1750545953440,-689.31,0.00023819,2]
[366882408,1750545953464,-689.39,0.00023819,2]
[366882409,1750545953496,-559.7384787,0.00023831,10]
[366882410,1750545953519,-9792.45757803,0.00023851,2]
[366882411,1750545953540,-420.0,0.00023906,2]
[366882412,1750545953561,-500.0,0.00023973,2]
[366882413,1750545953582,-151.0,0.00024,7]
[366882414,1750545953603,-151.0,0.00024,7]
[366882415,1750545953627,-151.0,0.00024,7]
[366882416,1750545953649,-151.0,0.00024,7]
[366882417,1750545953670,-500.0,0.00024,2]
[366882418,1750545953691,-500.0,0.00024,2]
[366882419,1750545953712,-402.94661271,0.00024,2]
[366882420,1750545953734,-600.0,0.00024025,2]
[366882421,1750545953755,-500.0,0.00024025,2]
[366882422,1750545953786,-559.7384787,0.00024038,10]
[366882423,1750545953809,-500.0,0.00024047,2]
[366882424,1750545953830,-5000.0,0.00024049,2]
[366882425,1750545953852,-800.0,0.00024049,2]
[366882426,1750545953874,-800.0,0.00024049,2]
[366882427,1750545953897,-800.0,0.00024049,2]
[366882428,1750545953919,-300.0,0.00024049,2]
[366882429,1750545953941,-800.0,0.00024049,2]
[366882430,1750545953963,-800.0,0.00024049,2]
[366882431,1750545953985,-300.0,0.00024049,2]
[366882432,1750545954006,-396.88900501,0.00024049,2]
[366882433,1750545954029,-800.0,0.00024049,2]
[366882434,1750545954052,-300.0,0.00024049,2]
[366882435,1750545954075,-800.0,0.00024049,2]
[366882436,1750545954098,-300.0,0.00024049,2]
[366882437,1750545954122,-800.0,0.00024049,2]
[366882438,1750545954145,-800.0,0.00024049,2]
[366882439,1750545954169,-300.0,0.00024049,2]
[366882440,1750545954192,-800.0,0.00024049,2]
[366882441,1750545954215,-300.0,0.00024049,2]
[366882442,1750545954237,-300.0,0.00024049,2]
[366882443,1750545954261,-800.0,0.00024049,2]
[366882444,1750545954283,-207.4,0.00024049,2]
[366882445,1750545954305,-300.0,0.00024049,2]
[366882446,1750545954328,-800.0,0.00024049,2]
[366882447,1750545954351,-300.0,0.00024049,2]
[366882448,1750545954373,-800.0,0.00024049,2]
[366882449,1750545954398,-800.0,0.00024049,2]
[366882450,1750545954420,-300.0,0.00024049,2]
[366882451,1750545954444,-800.0,0.00024049,2]
[366882452,1750545954469,-300.0,0.00024049,2]
[366882453,1750545954491,-300.0,0.00024049,2]
[366882454,1750545954514,-300.0,0.00024049,2]
[366882455,1750545954536,-300.0,0.00024049,2]
[366882456,1750545954560,-300.0,0.00024049,2]
[366882457,1750545954581,-151.0,0.000241,7]
[366882458,1750545954602,-460.0,0.00024109,2]
[366882459,1750545954623,-500.0,0.00024114,2]
[366882460,1750545954644,-160.0,0.00024169,2]
[366882461,1750545954674,-559.7384787,0.00024245,10]
[366882462,1750545954696,-151.0,0.000243,6]
[366882463,1750545954717,-9792.45757803,0.00024328,2]
[366882464,1750545954740,-158.457743,0.00024335,7]
[366882465,1750545954760,-854.03227567,0.00024355,2]
[366882466,1750545954783,-168.0,0.00024368,2]
[366882467,1750545954806,-168.0,0.00024379,2]
[366882468,1750545954827,-158.457743,0.00024402,2]
[366882469,1750545954857,-559.7384787,0.00024452,11]
[366882470,1750545954879,-366.44,0.00024467,3]
[366882471,1750545954900,-151.0,0.000245,9]
[366882472,1750545954921,-1200.0,0.00024573,2]
[366882473,1750545954941,-500.0,0.00024573,2]
[366882474,1750545954962,-5000.0,0.00024597,2]
[366882475,1750545954983,-400.0,0.00024658,7]
[366882476,1750545955006,-1000.0,0.00024658,2]
[366882477,1750545955027,-1000.0,0.00024658,2]
[366882478,1750545955049,-400.17808926,0.00024658,2]
[366882479,1750545955069,-380.0,0.00024658,2]
[366882480,1750545955091,-1000.0,0.00024658,2]
[366882481,1750545955116,-634.51008096,0.00024658,120]
[366882482,1750545955149,-559.7384787,0.00024659,11]
[366882483,1750545955171,-732.88,0.00024659,3]
[366882484,1750545955193,-500.0,0.00024662,2]
[366882485,1750545955215,-151.0,0.000247,6]
[366882486,1750545955238,-500.0,0.00024754,2]
[366882487,1750545955260,-10216.1640935,0.00024756,2]
[366882488,1750545955283,-500.0,0.00024799,2]
[366882489,1750545955313,-500.0,0.00024799,2]
[366882490,1750545955335,-3688.11064436,0.00024804,2]
[366882492,1750545960146,313.509687,0.00013699,2]
[366882494,1750546136390,339.84860108,0.00022374,70]
[366882497,1750546169108,-5000.0,0.00019986,2]
[366882498,1750546169132,-313.509687,0.00020187,2]
[366882499,1750546169156,-500.0,0.00022465,2]
[366882500,1750546169181,-460.0,0.00022466,2]
[366882501,1750546169204,-500.0,0.00022467,2]
[366882502,1750546169228,-460.0,0.00022473,2]
[366882503,1750546169251,-191.6738245,0.00022474,2]